bitfinex/quotes_SOLUSD_20241117
["timestamp","ask_amount","ask_price","bid_price","bid_amount"]
[1731850646400,0.12549,231.67,231.52,15.1174]
[1731850646715,10.9011,231.7,231.53,44.027864]
[1731850646905,0.09367462,231.68,231.52,15.1174]
[1731850648015,23.902374,231.66,231.52,15.1174]
[1731850648610,23.902374,231.66,231.53,20.0]
[1731850648813,23.776884,231.69,231.53,20.0]
[1731850650118,23.902374,231.67,231.54,15.1161]
[1731850650294,0.21916462,231.66,231.54,10.7972]
[1731850650496,0.25098,231.65,231.54,10.7972]
[1731850650699,0.21916462,231.6,231.46,10.8006]
[1731850650924,0.25098,231.59,231.46,10.8006]
[1731850651104,0.09367462,231.58,231.46,10.8006]
[1731850651833,4.41177462,231.58,231.39,15.1259]
[1731850652124,0.12549,231.57,231.39,36.7344]
[1731850652321,0.12549,231.57,231.4,24.027864]
[1731850652522,15.304,231.63,231.4,24.027864]
[1731850652523,15.304,231.63,231.44,0.1]
[1731850652725,15.304,231.63,231.46,0.22549]
[1731850652906,15.304,231.63,231.47,0.12549]
[1731850653214,15.304,231.63,231.4,70.0]
[1731850653215,4.41107462,231.62,231.37,15.3018]
[1731850653422,0.09367462,231.6,231.4,24.027864]
[1731850653720,0.09367462,231.6,231.39,36.7344]
[1731850653915,24.12153862,231.6,231.39,32.4127]
[1731850654105,24.12153862,231.58,231.39,32.4127]
[1731850654803,24.12153862,231.58,231.4,0.12549]
[1731850655019,24.12153862,231.56,231.41,15.1246]
[1731850655725,24.12153862,231.56,231.42,20.0]
[1731850656116,0.12549,231.54,231.43,4.3209]
[1731850657420,0.12549,231.54,231.43,15.1233]
[1731850658514,0.12549,231.54,231.43,10.8024]
[1731850660828,4.53816462,231.53,231.41,4.3213]
[1731850661129,4.53816462,231.53,231.37,10.8048]
[1731850661130,23.902374,231.5,231.37,10.8048]
[1731850662020,28.222174,231.5,231.37,10.8048]
[1731850663633,28.222174,231.5,231.38,20.0]
[1731850663931,28.222174,231.5,231.39,15.1259]
[1731850664420,23.902374,231.5,231.39,15.1259]
[1731850664620,15.7042,231.51,231.4,20.0]
[1731850665011,20.0237,231.51,231.39,15.1259]
[1731850665620,20.0237,231.51,231.39,10.8042]
[1731850666510,6.26,231.49,231.39,10.8042]
[1731850667339,23.776884,231.48,231.39,10.8042]
[1731850667837,6.26,231.49,231.39,10.8042]
[1731850669228,23.776884,231.48,231.39,10.8042]
[1731850669739,6.26,231.49,231.39,10.8042]
[1731850669946,15.7042,231.51,231.39,10.8042]
[1731850670310,15.7042,231.51,231.4,20.0]
[1731850671129,15.8155,231.56,231.42,20.0]
[1731850671315,15.8155,231.56,231.41,25.0918449]
[1731850671316,17.268868,231.58,231.45,20.25098]
[1731850671520,6.26,231.61,231.45,20.25098]
[1731850671741,6.26,231.61,231.47,20.0]
[1731850672435,23.776884,231.6,231.47,20.0]
[1731850672642,0.25098,231.59,231.48,10.8]
[1731850673631,23.776884,231.6,231.48,10.8]
[1731850674127,15.8155,231.63,231.49,20.0]
[1731850674742,15.8155,231.63,231.5,32.3973]
[1731850675046,15.8155,231.63,231.51,20.0]
[1731850675220,20.1328,231.63,231.51,20.0]
[1731850675418,15.8155,231.63,231.51,20.0]
[1731850675833,23.776884,231.63,231.51,20.0]
[1731850676034,23.776884,231.66,231.51,20.0]
[1731850676727,23.776884,231.66,231.46,0.1]
[1731850676728,10.9044,231.67,231.52,36.7138]
[1731850677138,10.9044,231.67,231.53,20.0]
[1731850677139,6.5879,231.67,231.53,20.0]
[1731850677340,0.1,231.8,231.53,20.0]
[1731850677341,6.5879,231.74,231.56,44.027864]
[1731850677848,15.2998,231.75,231.56,44.027864]
[1731850678021,15.2998,231.75,231.57,0.1]
[1731850678843,15.2998,231.75,231.59,20.25098]
[1731850679044,23.776884,231.74,231.59,20.25098]
[1731850679850,6.5879,231.79,231.6,23.876884]
[1731850680028,15.2998,231.81,231.63,20.25098]
[1731850680337,6.5879,231.84,231.65,44.027864]
[1731850680338,10.9013,231.84,231.65,44.027864]
[1731850680543,10.9013,231.84,231.65,20.12549]
[1731850680729,10.9013,231.84,231.66,15.1082]
[1731850680932,0.09367462,231.83,231.67,20.0]
[1731850681337,10.9013,231.84,231.67,20.0]
[1731850681651,15.2998,231.86,231.7,0.25098]
[1731850682541,6.5879,231.89,231.7,24.027864]
[1731850682737,15.595,231.92,231.72,24.027864]
[1731850682940,15.595,231.92,231.76,20.12549]
[1731850683138,6.2941,231.94,231.77,0.12549]
[1731850683448,4.3109,231.97,231.77,0.12549]
[1731850683654,15.2998,231.93,231.77,0.12549]
[1731850683827,4.3109,231.97,231.77,0.12549]
[1731850684149,0.09367462,231.96,231.76,20.0]
[1731850684447,0.09367462,231.94,231.76,20.0]
[1731850684754,15.595,231.95,231.78,15.1004]
[1731850685041,4.3112,231.96,231.79,20.0]
[1731850685229,4.3112,231.96,231.78,15.1004]
[1731850685432,4.3112,231.96,231.79,20.0]
[1731850685433,15.595,231.95,231.79,20.0]
[1731850685643,4.3112,231.96,231.81,20.0]
[1731850685854,19.9062,231.96,231.82,15.0978]
[1731850686061,0.12549,231.95,231.82,15.0978]
[1731850686560,0.25098,231.95,231.82,15.0978]
[1731850686859,28.339164,231.95,231.82,15.0978]
[1731850687756,4.3109,231.97,231.83,20.0]
[1731850687950,21.54808,231.99,231.83,20.0]
[1731850688255,0.09367462,231.98,231.83,20.0]
[1731850688635,4.3106,231.99,231.83,20.0]
[1731850688838,4.3106,231.99,231.84,15.0965]
[1731850689034,4.3097,232.03,231.87,6.2431]
[1731850689235,4.3097,232.03,231.88,20.0]
[1731850690859,4.3097,232.03,231.89,15.0932]
[1731850691043,4.3097,232.03,231.9,20.0]
[1731850691245,0.21916462,232.02,231.89,15.0932]
[1731850691561,0.12549,232.01,231.89,15.0932]
[1731850691754,4.3103,232.0,231.89,15.0932]
[1731850691943,23.776884,231.99,231.89,15.0932]
[1731850693751,0.25098,231.98,231.87,6.2431]
[1731850694250,0.25098,231.98,231.87,21.3377]
[1731850694444,0.09367462,231.97,231.81,6.2844]
[1731850694645,0.09367462,231.97,231.82,10.7841]
[1731850695561,4.311,231.96,231.82,15.0977]
[1731850695862,24.027864,231.95,231.83,20.0]
[1731850696037,0.09367462,231.94,231.82,15.0977]
[1731850696657,24.027864,231.93,231.82,15.0977]
[1731850697338,15.317,231.99,231.83,20.0]
[1731850697644,10.7722,232.05,231.84,0.12549]
[1731850697852,4.3096,232.04,231.84,0.25098]
[1731850698059,4.3096,232.04,231.87,21.7889]
[1731850698360,4.3096,232.04,231.88,20.0]
[1731850698564,4.3096,232.04,231.89,15.0932]
[1731850698767,4.3096,232.04,231.9,20.0]
[1731850699746,24.12153862,232.03,231.92,20.0]
[1731850699954,24.027864,232.03,231.92,20.0]
[1731850700943,4.3096,232.04,231.93,15.0907]
[1731850702449,24.027864,232.05,231.94,20.0]
[1731850702650,4.3081,232.12,231.94,20.0]
[1731850702959,15.1783,232.12,231.88,36.6559]
[1731850703151,0.09367462,232.09,231.89,20.0]
[1731850703865,23.87055862,232.1,231.89,20.0]
[1731850704160,0.21916462,232.08,231.89,20.0]
[1731850704367,0.09367462,232.06,231.89,20.0]
[1731850704566,0.34465462,232.06,231.89,20.0]
[1731850704766,4.3094,232.05,231.91,20.0]
[1731850705086,23.776884,232.04,231.91,20.0]
[1731850705562,10.8702,232.12,231.91,20.0]
[1731850705563,4.3084,232.1,231.91,20.0]
[1731850705755,4.3084,232.1,231.93,20.0]
[1731850706755,4.3084,232.1,231.95,6.2844]
[1731850707276,23.902374,232.09,231.96,20.0]
[1731850707767,4.43429,232.09,231.97,15.0881]
[1731850709057,4.43429,232.09,231.99,15.0868]
[1731850710372,23.902374,232.06,231.98,15.5045]
[1731850710582,23.902374,232.06,231.96,4.311]
[1731850710770,4.3087,232.09,231.96,15.0887]
[1731850711387,4.3082,232.12,231.96,36.6441]
[1731850711885,4.3082,232.12,231.97,20.25098]
[1731850712257,4.40137462,232.14,231.99,20.0]
[1731850712470,0.09367462,232.12,231.98,15.0874]
[1731850712666,0.21916462,232.12,231.98,15.0874]
[1731850713080,0.09367462,232.08,231.95,10.5955]
[1731850713253,0.21916462,232.08,231.95,10.5955]
[1731850713451,0.12549,232.08,231.95,21.3736]
[1731850714575,24.12153862,232.06,231.95,6.2844]
[1731850715753,24.12153862,232.06,231.93,15.5045]
[1731850715985,4.309,232.07,231.93,30.595]
[1731850716155,0.34465462,232.06,231.93,30.595]
[1731850716363,0.34465462,232.06,231.93,26.2836]
[1731850716665,0.34465462,232.04,231.93,26.2836]
[1731850716864,0.34465462,232.04,231.93,15.5045]
[1731850717171,24.12153862,232.04,231.93,15.5045]
[1731850717377,24.12153862,232.04,231.9,6.4637]
[1731850717882,24.12153862,232.04,231.9,10.7758]
[1731850718262,24.12153862,232.04,231.9,6.4637]
[1731850718463,24.12153862,232.04,231.88,10.7812]
[1731850718658,24.12153862,232.02,231.88,10.7812]
[1731850719383,0.34465462,232.0,231.85,4.3131]
[1731850719785,0.34465462,232.0,231.85,15.0959]
[1731850720684,4.3105,231.99,231.85,15.0959]
[1731850720859,24.12153862,231.98,231.85,15.0959]
[1731850721866,4.3109,231.97,231.85,15.0959]
[1731850722078,23.776884,231.96,231.85,15.0959]
[1731850723062,4.3109,231.97,231.8,10.7848]
[1731850723063,0.21916462,231.91,231.8,10.7848]
[1731850723263,0.21916462,231.89,231.78,6.5934]
[1731850723487,0.21916462,231.87,231.75,10.7871]
[1731850723663,0.25098,231.86,231.75,15.102]
[1731850723864,0.25098,231.86,231.75,10.7871]
[1731850724178,6.2893,231.92,231.75,15.102]
[1731850724389,24.027864,231.91,231.75,15.102]
[1731850724879,24.12153862,231.88,231.75,10.7871]
[1731850726267,0.1,231.94,231.75,10.7871]
[1731850726268,4.3109,231.97,231.76,0.12549]
[1731850726696,4.3109,231.97,231.76,20.12549]
[1731850727399,2.40590587,231.99,231.92,6.65718401]
[1731850727585,6.2893,232.0,231.92,6.65718401]
[1731850727784,6.2893,232.0,231.93,6.65718401]
[1731850728193,0.09367462,231.99,231.93,6.65718401]
[1731850728506,4.3105,231.99,231.91,4.3119]
[1731850728797,4.3097,232.03,231.91,4.3119]
[1731850729184,0.1,232.02,231.85,6.5934]
[1731850729374,0.09367462,231.99,231.86,4.3129]
[1731850729580,0.09367462,231.99,231.86,10.7823]
[1731850729892,0.21916462,231.97,231.86,10.7823]
[1731850730092,0.21916462,231.95,231.8,6.71466593]
[1731850730395,0.34465462,231.92,231.91,26.85866375]
[1731850730580,0.34465462,231.92,231.9,26.85866375]
[1731850731292,23.776884,231.9,231.89,26.85866375]
[1731850731486,23.776884,231.9,231.89,13.45743059]
[1731850732693,23.776884,231.9,231.89,6.73518231]
[1731850733405,28.089084,231.9,231.88,13.45743059]
[1731850733593,28.089084,231.9,231.88,6.73963697]
[1731850734018,23.776884,231.91,231.87,6.73963697]
[1731850734496,23.776884,231.91,231.85,6.73963697]
[1731850734687,23.776884,231.91,231.84,6.73963697]
[1731850734883,23.776884,231.93,231.87,6.73963697]
[1731850735090,4.3115,231.94,231.87,6.73963697]
[1731850735394,4.53006462,231.97,231.87,11.05223697]
[1731850735591,4.3109,231.97,231.87,4.3126]
[1731850735906,4.3109,231.97,231.87,11.05223697]
[1731850736107,4.3097,232.03,231.88,6.73963697]
[1731850736310,0.09367462,232.01,231.89,6.73963697]
[1731850736488,4.3097,232.03,231.89,6.73963697]
[1731850736818,4.3097,232.03,231.88,22.71803697]
[1731850736988,0.09367462,232.02,231.88,15.9784]
[1731850737405,0.19367462,232.0,231.88,6.73963697]
[1731850737601,0.19367462,232.0,231.85,6.73963697]
[1731850737602,0.09367462,232.0,231.85,6.73963697]
[1731850737990,0.09367462,231.98,231.85,6.73963697]
[1731850738190,4.3101,232.01,231.86,6.73963697]
[1731850738394,4.3101,232.01,231.87,6.73963697]
[1731850738701,0.09367462,232.0,231.88,6.73963697]
[1731850739006,0.09367462,232.0,231.87,6.73963697]
[1731850739208,0.09367462,232.04,231.88,6.73963697]
[1731850739401,15.17727462,232.04,231.87,11.05223697]
[1731850739606,0.21916462,232.02,231.87,11.05223697]
[1731850739811,0.12549,231.99,231.87,4.3126]
[1731850740008,0.12549,231.97,231.87,4.3126]
[1731850740314,0.12549,231.97,231.87,15.0945]
[1731850740485,0.12549,231.97,231.87,21.83413697]
[1731850740689,0.12549,231.97,231.87,15.0945]
[1731850741115,0.12549,231.97,231.87,21.83413697]
[1731850741284,0.09367462,231.94,231.87,6.73963697]
[1731850741485,0.34465462,231.94,231.86,6.73963697]
[1731850741686,0.34465462,231.94,231.85,6.73963697]
[1731850742292,0.34465462,231.94,231.84,6.73963697]
[1731850742495,0.34465462,231.94,231.83,6.73963697]
[1731850742688,0.34465462,231.94,231.82,6.73963697]
[1731850743411,24.12153862,231.92,231.81,21.83773697]
[1731850744315,4.312,231.91,231.81,21.83773697]
[1731850744506,23.776884,231.9,231.81,21.83773697]
[1731850744694,4.3116,231.93,231.83,6.73963697]
[1731850745016,4.3103,232.0,231.86,6.73963697]
[1731850745231,4.3103,232.0,231.88,15.9784]
[1731850745511,4.3094,232.05,231.89,20.12549]
[1731850745725,4.3094,232.05,231.91,6.73963697]
[1731850746008,4.3094,232.05,231.93,6.73963697]
[1731850746211,4.3094,232.05,231.92,6.73963697]
[1731850746392,4.3094,232.05,231.93,21.83033697]
[1731850746592,4.3094,232.05,231.94,6.73963697]
[1731850746899,4.3091,232.07,231.95,6.73963697]
[1731850747398,4.3091,232.07,231.96,6.73963697]
[1731850747815,17.46495594,232.12,231.97,4.3109]
[1731850747816,4.3083,232.11,231.97,4.3109]
[1731850748000,24.027864,232.1,231.97,4.3109]
[1731850748306,24.027864,232.1,231.97,15.0881]
[1731850749192,23.902374,232.08,231.97,15.0881]
[1731850750410,15.0176,232.14,231.98,26.73963697]
[1731850750604,4.3079,232.13,232.01,20.0]
[1731850750805,0.48355105,232.16,232.02,0.12549]
[1731850751010,0.48355105,232.16,232.04,20.0]
[1731850751813,0.48355105,232.16,232.05,0.12549]
[1731850752196,0.48355105,232.16,232.06,20.0]
[1731850752395,0.48355105,232.16,232.08,20.0]
[1731850752999,0.48355105,232.16,232.11,20.0]
[1731850753317,0.48355105,232.16,232.12,0.12549]
[1731850754611,0.48355105,232.16,232.13,15.0777]
[1731850754822,0.48355105,232.16,232.1,22.07423697]
[1731850755115,0.48355105,232.16,232.08,4.3087]
[1731850755697,0.12549,232.15,232.07,10.7722]
[1731850756010,0.12549,232.13,232.03,6.2006]
[1731850756315,4.79095105,232.16,232.02,15.0847]
[1731850756518,0.12549,232.15,232.02,15.0847]
[1731850756709,0.48355105,232.16,232.03,6.73963697]
[1731850757019,0.12549,232.15,232.04,6.73963697]
[1731850757222,23.902374,232.15,232.03,6.73963697]
[1731850757428,23.902374,232.15,232.02,15.0847]
[1731850757732,0.12549,232.13,232.02,10.7749]
[1731850757918,0.21916462,232.08,231.98,20.19706756]
[1731850758127,0.25098,232.07,231.97,6.73963697]
[1731850758298,0.12549,232.07,231.97,11.05033697]
[1731850758505,4.43459,232.07,231.97,11.05033697]
[1731850758825,4.43459,232.07,231.96,24.23483059]
[1731850758826,4.43459,232.07,231.96,17.51703697]
[1731850759115,0.12549,232.05,231.96,10.7774]
[1731850759710,0.12549,232.05,231.96,15.0884]
[1731850759912,0.12549,232.05,231.95,6.73963697]
[1731850759913,0.25098,232.05,231.95,6.73963697]
[1731850760120,0.25098,232.05,231.93,6.73963697]
[1731850760295,0.25098,232.05,231.93,11.05123697]
[1731850760615,23.776884,232.04,231.93,11.05123697]
[1731850760808,0.12549,232.03,231.93,6.73963697]
[1731850761409,0.21916462,232.02,231.91,6.73963697]
[1731850761720,0.12549,231.95,231.89,6.73963697]
[1731850762018,24.027864,232.01,231.89,6.73963697]
[1731850762220,0.12549,231.99,231.88,17.52103697]
[1731850762420,0.21916462,231.96,231.86,6.73963697]
[1731850762628,0.21916462,231.96,231.85,13.45743059]
[1731850762629,0.12549,231.94,231.85,6.73963697]
[1731850762818,24.027864,231.94,231.84,6.73963697]
[1731850763120,24.027864,231.94,231.82,6.73963697]
[1731850763121,0.34465462,231.93,231.82,6.73963697]
[1731850763423,0.34465462,231.93,231.79,6.73963697]
[1731850763801,0.34465462,231.93,231.78,17.77183059]
[1731850763802,0.34465462,231.93,231.78,11.05403697]
[1731850764104,0.34465462,231.93,231.78,21.84003697]
[1731850764301,0.34465462,231.93,231.78,15.1004]
[1731850764707,24.12153862,231.91,231.78,15.1004]
[1731850765118,0.12549,231.91,231.78,15.1004]
[1731850765430,0.12549,231.93,231.79,6.73963697]
[1731850765611,4.311,231.97,231.79,6.73963697]
[1731850765612,4.311,231.97,231.81,6.73963697]
[1731850766127,0.09367462,231.96,231.8,6.73963697]
[1731850766312,0.09367462,231.96,231.79,6.73963697]
[1731850766514,0.09367462,231.94,231.81,4.3138]
[1731850766915,24.12153862,231.94,231.81,4.3138]
[1731850767205,24.12153862,231.94,231.78,17.52563697]
[1731850767404,24.12153862,231.94,231.79,4.3142]
[1731850767622,24.12153862,231.94,231.79,21.83943697]
[1731850767831,24.12153862,231.94,231.79,15.0998]
[1731850768334,0.09367462,231.87,231.77,6.73963697]
[1731850768505,24.12153862,231.83,231.69,6.36045209]
[1731850768705,24.12153862,231.83,231.68,13.45743059]
[1731850768907,24.027864,231.81,231.65,28.56603059]
[1731850769225,0.12549,231.77,231.65,15.1086]
[1731850769429,0.09367462,231.76,231.63,13.45743059]
[1731850769733,0.09367462,231.74,231.61,40.31609434]
[1731850769905,0.09367462,231.74,231.56,53.71732751]
[1731850769906,0.12549,231.71,231.56,13.45743059]
[1731850770112,0.12549,231.71,231.55,15.1154]
[1731850770113,0.25098,231.71,231.55,15.1154]
[1731850770308,6.545,231.78,231.55,10.7968]
[1731850770309,0.1,231.68,231.55,10.7968]
[1731850770636,24.12153862,231.65,231.45,15.1216]
[1731850771134,0.34465462,231.65,231.45,15.1216]
[1731850771431,0.21916462,231.63,231.45,15.1216]
[1731850771627,0.34465462,231.63,231.45,15.1216]
[1731850771927,0.34465462,231.61,231.4,4.3215]
[1731850772136,0.09367462,231.54,231.37,15.1269]
[1731850772333,0.25098,231.56,231.37,10.805]
[1731850772334,0.09367462,231.5,231.37,10.805]
[1731850772523,24.12153862,231.49,231.35,0.47007435]
[1731850773029,0.09367462,231.43,231.35,0.47007435]
[1731850773233,0.09367462,231.37,231.35,0.47007435]
[1731850773414,24.22153862,231.36,231.35,0.47007435]
[1731850773614,0.09367462,231.33,231.14,4.3263]
[1731850773833,0.12549,231.31,231.14,15.1422]
[1731850774012,0.25098,231.31,231.14,15.1422]
[1731850774330,0.34465462,231.3,231.14,15.1422]
[1731850774535,0.1,231.25,231.12,0.4768127]
[1731850774720,0.12549,231.24,231.12,0.4768127]
[1731850774921,0.09367462,231.23,231.12,0.4768127]
[1731850775112,4.323,231.32,231.13,4.3265]
[1731850775311,0.25098,231.31,231.13,15.1429]
[1731850775638,0.12549,231.31,231.13,15.2429]
[1731850775840,6.70124098,231.4,231.13,15.1429]
[1731850776126,6.70124098,231.4,231.14,6.53088544]
[1731850776538,6.70124098,231.4,231.15,0.1]
[1731850776708,6.0682,231.46,231.16,6.31544584]
[1731850776918,0.1,231.45,231.16,6.31544584]
[1731850777107,0.09367462,231.34,231.13,36.7757]
[1731850777412,0.09367462,231.36,231.14,5.96877918]
[1731850777742,0.09367462,231.37,231.13,36.7757]
[1731850778036,0.09367462,231.34,231.13,36.7757]
[1731850778629,1.728976,231.34,231.13,36.8757]
[1731850778826,0.1,231.43,231.13,36.7757]
[1731850779017,1.728976,231.39,231.13,36.8757]
[1731850779217,0.09367462,231.38,231.14,24.027864]
[1731850779538,0.1,231.51,231.18,0.1]
[1731850779715,0.1,231.48,231.22,0.12549]
[1731850779924,6.68981375,231.49,231.24,44.027864]
[1731850780128,6.68981375,231.49,231.26,0.2]
[1731850780335,6.0682,231.57,231.29,0.25098]
[1731850780634,0.1,231.54,231.32,23.776884]
[1731850780820,0.09367462,231.53,231.34,23.776884]
[1731850781016,0.09367462,231.53,231.32,23.776884]
[1731850781017,0.19367462,231.51,231.32,23.776884]
[1731850781541,0.09367462,231.49,231.32,23.776884]
[1731850781712,0.09367462,231.39,231.1,0.1]
[1731850781917,0.2640255,231.39,231.16,0.1]
[1731850782222,0.1,231.49,231.17,28.26383046]
[1731850782411,0.1,231.5,231.17,21.9049]
[1731850782612,0.1,231.43,231.17,21.9049]
[1731850782819,0.1,231.41,231.17,21.9049]
[1731850783134,0.1,231.31,231.13,15.1429]
[1731850783437,0.25098,231.31,231.13,15.1429]
[1731850784012,0.34465462,231.3,231.13,15.1429]
[1731850784419,0.12549,231.3,231.13,15.1429]
[1731850784852,0.34465462,231.29,231.13,15.1429]
[1731850785721,6.0682,231.35,231.13,15.1429]
[1731850785930,20.0,231.4,231.14,20.0]
[1731850786331,0.1,231.43,231.15,0.12549]
[1731850787031,0.1,231.43,231.17,24.027864]
[1731850787222,0.1,231.43,231.18,20.0]
[1731850787424,0.1,231.43,231.19,23.776884]
[1731850787638,0.09367462,231.42,231.2,15.1383]
[1731850787939,24.027864,231.41,231.21,23.776884]
[1731850788115,0.25098,231.41,231.21,23.776884]
[1731850788316,6.69188135,231.42,231.21,23.776884]
[1731850788543,17.283197,231.45,231.25,23.776884]
[1731850788729,17.283197,231.45,231.26,20.0]
[1731850788931,17.283197,231.45,231.27,23.776884]
[1731850789518,17.283197,231.45,231.24,23.776884]
[1731850789726,17.283197,231.45,231.23,43.776884]
[1731850790125,17.283197,231.45,231.24,0.12549]
[1731850790319,17.283197,231.45,231.22,36.7614]
[1731850790320,0.1,231.54,231.26,43.902374]
[1731850790636,0.09367462,231.48,231.26,43.902374]
[1731850790818,0.1,231.51,231.26,43.902374]
[1731850791221,0.09367462,231.5,231.26,43.902374]
[1731850791516,0.09367462,231.5,231.27,15.1337]
[1731850791739,6.68580624,231.51,231.28,43.776884]
[1731850792240,0.19367462,231.46,231.27,15.1337]
[1731850792742,20.0,231.5,231.27,15.1337]
[1731850792942,24.027864,231.49,231.27,15.1337]
[1731850793150,0.09367462,231.46,231.27,15.1337]
[1731850793438,0.09367462,231.46,231.27,36.7534]
[1731850793645,0.1,231.61,231.29,0.1]
[1731850793937,0.1,231.61,231.29,1.4]
[1731850794147,0.1,231.65,231.29,1.4]
[1731850794148,6.68323464,231.57,231.31,0.1]
[1731850794439,0.1,231.63,231.34,24.027864]
[1731850794621,0.09367462,231.61,231.39,0.12549]
[1731850794823,6.67915923,231.62,231.42,23.776884]
[1731850795037,6.1682,231.69,231.42,23.776884]
[1731850795235,6.1682,231.69,231.41,20.25098]
[1731850795236,17.272024,231.57,231.44,23.776884]
[1731850795542,6.67687157,231.66,231.42,23.776884]
[1731850795723,4.3157,231.71,231.48,23.776884]
[1731850795922,17.263986,231.68,231.51,20.25098]
[1731850796143,0.1,231.8,231.55,0.12549]
[1731850796144,4.3154,231.73,231.55,0.12549]
[1731850796443,17.260996,231.72,231.56,23.776884]
[1731850796641,4.315,231.75,231.58,23.776884]
[1731850797027,17.259516,231.74,231.58,23.776884]
[1731850797237,17.259516,231.74,231.55,20.25098]
[1731850797238,17.259516,231.74,231.55,0.12549]
[1731850797439,0.09367462,231.71,231.56,15.1148]
[1731850797768,0.09367462,231.71,231.57,23.776884]
[1731850797943,0.09367462,231.69,231.57,23.776884]
[1731850798322,0.09367462,231.69,231.52,21.5961]
[1731850798323,0.21916462,231.69,231.52,23.776884]
[1731850798542,0.21916462,231.69,231.52,28.096084]
[1731850799239,0.09367462,231.65,231.5,15.1184]
[1731850799432,0.21916462,231.63,231.5,10.7988]
[1731850799626,0.34465462,231.61,231.5,10.7988]
[1731850800346,0.09367462,231.59,231.46,4.3204]
[1731850800525,0.21916462,231.55,231.37,4.322]
[1731850800726,0.12549,231.52,231.38,10.8046]
[1731850800926,0.14297859,231.52,231.38,10.8046]
[1731850801222,0.12549,231.54,231.38,10.8046]
[1731850801223,0.09367462,231.51,231.38,10.8046]
[1731850801558,4.44449,231.54,231.38,10.8046]
[1731850801854,4.3168,231.65,231.38,10.8046]
[1731850802450,0.09367462,231.64,231.38,10.8046]
[1731850802827,0.09367462,231.64,231.39,20.0]
[1731850803050,23.99604862,231.62,231.4,15.1253]
[1731850803254,0.21916462,231.62,231.41,20.0]
[1731850803746,0.21916462,231.62,231.42,0.12549]
[1731850803932,0.21916462,231.62,231.41,20.0]
[1731850804254,0.09367462,231.57,231.4,15.1253]
[1731850804553,0.09367462,231.47,231.28,21.6183]
[1731850804750,0.21916462,231.47,231.3,4.3233]
[1731850805058,0.12549,231.44,231.29,10.8089]
[1731850805836,0.12549,231.44,231.3,23.776884]
[1731850806051,4.3202,231.47,231.32,23.776884]
[1731850806358,0.25098,231.51,231.33,0.12549]
[1731850806536,0.25098,231.51,231.34,23.776884]
[1731850807147,0.12549,231.51,231.36,0.12549]
[1731850807337,4.3192,231.52,231.36,23.776884]
[1731850807538,4.3192,231.52,231.35,15.1285]
[1731850807755,0.09367462,231.48,231.3,23.776884]
[1731850807966,0.09367462,231.48,231.29,10.8084]
[1731850808253,0.09367462,231.42,231.26,1.0]
[1731850808658,0.34465462,231.42,231.26,1.0]
[1731850808960,0.12549,231.38,231.26,1.0]
[1731850809166,0.25098,231.36,231.26,1.0]
[1731850809458,0.25098,231.34,231.26,1.0]
[1731850809846,20.0,231.33,231.26,1.0]
[1731850810161,0.25098,231.32,231.26,1.0]
[1731850810367,0.1,231.26,231.12,0.4768127]
[1731850810668,0.25098,231.22,231.12,0.4768127]
[1731850810970,0.12549,231.22,231.12,0.4768127]
[1731850811267,0.25098,231.2,231.12,0.4768127]
[1731850812255,0.25098,231.18,231.12,0.4768127]
[1731850813252,4.3258,231.17,231.12,0.4768127]
[1731850813461,0.25098,231.16,231.12,0.4768127]
[1731850814042,4.3258,231.17,231.12,0.4768127]
[1731850814245,20.1,231.27,231.12,0.4768127]
[1731850814246,4.3241,231.26,231.12,15.6202127]
[1731850814459,4.323,231.32,231.13,23.776884]
[1731850814764,4.323,231.32,231.12,15.6202127]
[1731850814765,0.1,231.27,231.12,0.4768127]